Workbook

Sheet S-1-1
A1: [ S-1-1 ] 목표 수립 및 공시
A3: 연도별 | B3: 사회분야 핵심토픽에 대한 목표 및 성과 관리현황을 측정 | G3: 담당부서 | H3: 비고
B4: 1단계 | C4: 2단계 | D4: 3단계 | E4: 4단계 | F4: 5단계
B5: 단기/중장기 성과목표 또는 사회분야 경영 미션/비전/지향점 없음 | C5: 단기/중장기 성과목표 없으나 사회분야 미션/비전/지향점 있음 | D5: 사회분야 핵심이슈 단기목표 설정 | E5: 사회분야 핵심이슈 중장기 목표 설정하고 있으나, 모든 중장기 목표가 정성적 형태로 되어 있는 경우 | F5: 중장기 목표 설정하고 있으며, 중장기 목표에는 정성 외에 정량적 목표를 포함하고 있는 경우
A6: 2022년 | F6: O | G6: 혁신기획부
A7: 2021년 | F7: O | G7: 기획부
A8: 2020년 | B8: 해당사항 없음
A9: 2019년 | B9: 해당사항 없음
A10: 2018년 | B10: 해당사항 없음
A11: 2017년 | B11: 해당사항 없음

Sheet S-2-1
A1: [ S-2-1 ] 신규 채용 및 고용 유지
K2: ( 단위 : 명, 원 )
A3: 연도별 | B3: 신규채용 인원 | D3: 부가가치 | F3: 신규채용 지수 | H3: 고용 규모 | K3: 담당부서 | L3: 비고
B4: 당해연도 신규채용 인원 (A) | C4: 전년도 신규채용 인원 (B) | D4: 당해연도 부가가치 (C ) | E4: 전년도 부가가치 (D) | F4: 재단 지수 (E= (A/B)/(C/D)) | G4: 산업평균 | H4: 당해연도 총인원 (F) | I4: 전년도 총인원 (G) | J4: 인원 증감 (F=F-G)
A5: 2022년 | B5: 68 | C5: 89 | D5: 333816093823 | E5: 443884806425 | F5: =(B5/C5)/(D5/E5) -> 1.015972412 | H5: 774 | I5: 719 | J5: =H5-I5 -> 55 | K5: 인사관리부
A6: 2021년 | B6: 89 | C6: 78 | D6: 443884806425 | E6: 434387301446 | F6: =(B6/C6)/(D6/E6) -> 1.116611882 | H6: 719 | I6: 644 | J6: =H6-I6 -> 75 | K6: 인재채용부 | L6: 연말 정원 기준(임원+정규직+비정규직)
A7: 2020년 | B7: 78 | C7: 27 | D7: 434387301446 | E7: 292740843611 | F7: =(B7/C7)/(D7/E7) -> 1.94687038 | H7: 644 | I7: 574 | J7: =H7-I7 -> 70 | K7: 인재채용부
A8: 2019년 | B8: 27 | C8: 15 | D8: 292740843611 | E8: 404191461577 | F8: =(B8/C8)/(D8/E8) -> 2.485285695 | H8: 574 | I8: 505 | J8: =H8-I8 -> 69 | K8: 인재채용부
A9: 2018년
A10: 2017년
A11: * 당해연도 총인원과 전년도 총인원은 연도 말 기준

Sheet S-2-2
A1: [ S-2-2 ] 정규직 비율
F2: ( 단위 : 명, % )
A3: 연도별 | B3: 정규직 비율 | F3: 담당부서 | G3: 비고
B4: 총 근로자수 (A) | C4: 정규직 근로자수 (B) | D4: 비정규직 근로자수 (C ) | E4: 정규직 비율 (B/A)
A5: 2022년 | B5: 774 | C5: 750 | D5: 24 | E5: =C5/B5 -> 0.9689922481 | F5: 인사관리부
A6: 2021년 | B6: =SUM(C6:D6) -> 719 | C6: 692 | D6: 27 | E6: =C6/B6 -> 0.9624478442 | F6: 인사관리부 | G6: 연말 정원 기준(임원+정규직+비정규직)
A7: 2020년 | B7: =SUM(C7:D7) -> 644 | C7: 615 | D7: 29 | E7: =C7/B7 -> 0.9549689441 | F7: 인사관리부
A8: 2019년 | B8: =SUM(C8:D8) -> 574 | C8: 544 | D8: 30 | E8: =C8/B8 -> 0.9477351916 | F8: 인사관리부
A9: 2018년
A10: 2017년
A11: * 근로자수는 해당연도 말 인원 수 기준

Sheet S-2-3
A1: [ S-2-3 ] 자발적 이직률
F2: ( 단위 : 명, % )
A3: 연도별 | B3: 자발적 이직률 | F3: 담당부서 | G3: 비고
B4: 총 직원 수 (A) | C4: 총 자발적 퇴사자(이직자) 수 (B) | D4: 자발적 퇴사(이직)율 (C=B/A) | E4: 산업평균
A5: 2022년 | B5: 774 | C5: 19 | D5: =C5/B5 -> 0.02454780362 | F5: 인사관리부
A6: 2021년 | B6: 719 | C6: 18 | D6: =C6/B6 -> 0.02503477051 | F6: 인재채용부
A7: 2020년 | B7: 644 | C7: 12 | D7: =C7/B7 -> 0.01863354037 | F7: 인재채용부
A8: 2019년 | B8: 574 | C8: 6 | D8: =C8/B8 -> 0.01045296167 | F8: 인재채용부
A9: 2018년
A10: 2017년
A11: * 인원 수는 해당연도 말 기준

Sheet S-2-4
A1: [ S-2-4 ] 교육훈련비
F2: ( 단위 : 명, 원, % )
A3: 연도별 | B3: 교육훈련비 | F3: 담당부서 | G3: 비고
B4: 총 직원 수 (A) | C4: 연간 교육훈련비 총 지출액 (B) | D4: 1인당 교육훈련비 (C=B/A) | E4: 산업평균
A5: 2022년 | B5: 774 | C5: 1882960738 | D5: =C5/B5 -> 2432765.811 | F5: 교육운영부
A6: 2021년 | B6: 719 | C6: 1449819585 | D6: =C6/B6 -> 2016438.922 | F6: 교육운영부
A7: 2020년 | B7: 644 | C7: 1300224587 | D7: =C7/B7 -> 2018982.278 | F7: 교육운영부
A8: 2019년 | B8: 574 | C8: 1224407948 | D8: =C8/B8 -> 2133114.892 | F8: 교육운영부
A9: 2018년
A10: 2017년
A11: * 인원 수는 해당연도 말 기준

Sheet S-2-5
A1: [ S-2-5 ] 복리후생비
F2: ( 단위 : 명, 원, % )
A3: 연도별 | B3: 복리후생비 | F3: 담당부서 | G3: 비고
B4: 총 직원 수 (A) | C4: 연간 복리후생비 총 지출액 (B) | D4: 1인당 복리후생비 (C=B/A) | E4: 산업평균
A5: 2022년 | B5: 774 | C5: 11190691882 | D5: =C5/B5 -> 14458258.25 | F5: 노사협력부
A6: 2021년 | B6: 719 | C6: 7019381847 | D6: =C6/B6 -> 9762700.761 | F6: 노사협력부
A7: 2020년 | B7: 644 | C7: 6159905921 | D7: =C7/B7 -> 9565071.306 | F7: 노사협력부
A8: 2019년 | B8: 574 | C8: 12430907808 | D8: =C8/B8 -> 21656633.81 | F8: 노사협력부
A9: 2018년 | C9: 5414941018
A10: 2017년
A11: * 인원 수는 해당연도 말 기준

Sheet S-2-6
A1: [ S-2-6 ] 결사의 자유 보장
A3: 연도별 | B3: 노동조합의 설립 및 정당한 노동조합 활동을 보장하고 있는지 점검 | G3: 담당부서 | H3: 비고
B4: 1단계 | C4: 2단계 | D4: 3단계 | E4: 4단계 | F4: 5단계
B5: 노동조합 가입·설립, 노사협의회 설치 관련정보가 모두 없음 | C5: 노동조합 가입·설립 또는 상시근로자 30인 이상인 경우 노사협의회 설치(위원 선임, 협의회규정 제정 등) | D5: 2단계+노동조합과 단체교섭 진행+3개월마다 노사협의회 정기개최 | E5: 3단계+노동조합과 단체협약 체결+노사협의회 정기회의 외 추가 임시회의 개최 | F5: 4단계+체결된 단체협약 이행+노사협의회 의결(합의) 여부
A6: 2022년 | F6: O | G6: 노사협력부
A7: 2021년 | F7: O | G7: 노사협력부
A8: 2020년 | F8: O | G8: 노사협력부
A9: 2019년 | F9: O | G9: 노사협력부
A10: 2018년 | F10: O | G10: 노사협력부
A11: 2017년 | F11: O | G11: 노사협력부

Sheet S-3-1
A1: [ S-3-1 ] 여성 구성원 비율
I2: ( 단위 : 명, %, %p )
A3: 연도별 | B3: 여성 구성원 비율 | I3: 담당부서 | J3: 비고
B4: 여성 구성원 비율 | E4: 미등기 여성 비율 | H4: 비율 차이
B5: 총 구성원 수 (A) | C5: 여성 구성원 수 (B) | D5: 여성 비율 (C=B/A) | E5: 총 미등기 임원 수 (D) | F5: 미등기 여성 임원 수 (E ) | G5: 미등기 여성 임원 비율 (F=E/D) | H5: (C-F, %p)
A6: 2022년 | B6: 771 | C6: 203 | D6: =C6/B6 -> 0.2632944228 | E6: 10 | F6: 0 | G6: 0 | H6: =D6-G6 -> 0.2632944228 | I6: 인사관리부
A7: 2021년 | B7: 719 | C7: 168 | D7: =C7/B7 -> 0.2336578581 | E7: 10 | F7: 0 | G7: 0 | H7: =D7-G7 -> 0.2336578581 | I7: 인사관리부
A8: 2020년
A9: 2019년
A10: 2018년
A11: 2017년
A12: * 인원 수는 해당연도 말 기준

Sheet S-3-2
A1: [ S-3-2 ] 여성 급여 비율(평균 급여액 대비)
I2: ( 단위 : 원, % )
A3: 연도별 | B3: 여성 급여 비율(평균 급여액 대비) | I3: 담당부서 | J3: 비고
B4: 조직의 1인 평균 급여액 | E4: 여성 1인 평균 급여액 | H4: 여성 급여 비율 (F/C, %)
B5: 총 급여액 (A) | C5: 총 인원 (B) | D5: 평균 급여액 (C=A/B) | E5: 여성 총 급여액 (D) | F5: 여성 총 인원 (E ) | G5: 여성 평균 급여액 (F=D/E)
A6: 2022년 | B6: 44616671000 | C6: 750 | D6: =B6/C6 -> 59488894.67 | E6: =F6*G6 -> 8449452000 | F6: 198 | G6: 42674000 | H6: =G6/D6 -> 0.7173439722 | I6: 노사협력부
A7: 2021년 | B7: 42959759000 | C7: 701 | D7: =B7/C7 -> 61283536.38 | E7: =F7*G7 -> 7274950000 | F7: 166 | G7: 43825000 | H7: =G7/D7 -> 0.7151186532 | I7: 노사협력부
A8: 2020년
A9: 2019년
A10: 2018년
A11: 2017년
A12: * 총 인원은 1~12월까지 매월 말 현원의 합계 인원을 12로 나눈 인원
A13: * 총 급여액은 1~12월 까지 지급한 급여 해당 항목의 연간 총액
A15: * 인원 : 정규직, 무기계약직 대상
A16: - 월말현원에는 휴직자 포함(정원 대비 현원 현황 자료 기준)
A17: * 급여 : 기본연봉, 가족수당, 기타수당, 시간외/휴일근무수당, 경평성과급, 업무실적연봉, 직무활동비, 자체성과금

Sheet S-3-3
A1: [ S-3-3 ] 장애인 고용률
H2: ( 단위 : 명, % )
A3: 연도별 | B3: 장애인 고용률 | H3: 담당부서 | I3: 비고
B4: 장애인 고용률 | E4: 법정 의무 고용률 | G4: 법정 의무 고용률 대비 실고용률 (C/D, %)
B5: 장애인 상시근로자 수 (A) | C5: 상시근로자 수 (B) | D5: 장애인 고융률 (C=A/B) | E5: 의무 고용률 (D) | F5: 의무 고용 인원 (E=B*D) *소수점 절사
A6: 2022년 | B6: 34 | C6: 821 | D6: =B6/C6 -> 0.04141291108 | E6: 0.036 | F6: =ROUNDDOWN(C6*E6,0) -> 29 | G6: =D6/E6 -> 1.150358641 | H6: 인사관리부 | I6: 연말기준
A7: 2021년 | B7: 29 | C7: 823 | D7: =B7/C7 -> 0.03523693803 | E7: 0.034 | F7: =ROUNDDOWN(C7*E7,0) -> 27 | G7: =D7/E7 -> 1.03638053 | H7: 인재채용부 | I7: 연말기준
A8: 2020년
A9: 2019년
A10: 2018년
A11: 2017년
A12: * 상시근로자 수는 1~12월까지 매월 15일 이상 또는 60시간 이상 근무한 근로자 합계 인원

Sheet S-4-1
A1: [ S-4-1 ] 안전보건 추진체계
A3: 연도별 | B3: 안전보건 추진체계 | G3: 담당부서 | H3: 비고
B4: 안전경영방침 공표/ 인력시설장비 배정/ 구성원의 책임과 권한 부여 | C4: 안전보건 정보공개/ 구성원 참여절차 마련/ 의견제시 문화 조성 등 | D4: 유해위험요인 파악/ 위험성 평가/ 위험요인 제거.통제 방안 마련/ 교육훈련 실시 | E4: 위험요인별 시나리오 및 조치계획 수립/ 주기적 훈련/ 도급근로자 등 모든 구성원에 대한 보호 | F4: 안전보건 목표 설정/ 계획대비 달성 여부 평가/ 문제점에 대한 주기적인 검토 및 개선
A5: 2022년 | B5: O | C5: O | D5: O | E5: O | F5: O | G5: 안전계획부
A6: 2021년 | B6: O | C6: O | D6: O | E6: O | F6: O | G6: 안전운영부
A7: 2020년
A8: 2019년
A9: 2018년
A10: 2017년
A12: 요건1 | B12: 경영자가 확고한 리더십으로 비전을 제시하고 필요한 자원을 배정하는 경우(안전경영방침 공표, 인력·시설·장비 등 배정, 구성원에게 책임과 권한 부여)
A13: 요건2 | B13: 안전보건관리체계 구축을 위해 근로자의 참여 및 협의를 보장하는 경우(안전보건 정보공개, 구성원 참여절차 마련, 의견제시 문화 조성 등)
A14: 요건3 | B14: 조직의 위험요인 파악과 이에 대한 제거·대체·통제 조치를 하는 경우(유해위험요인 파악, 위험성 평가, 위험요인 제거·대체·통제 방안 마련, 교육훈련 실시)
A15: 요건4 | B15: 중대한 위험요인에 대처할 수 있는 비상 조치계획을 수립한 경우(위험요인별 시나리오 및 조치계획 수립, 주기적 훈련, 사업장 내 도급 근로자 등 모든 구성원에 대한 보호 여부)
A16: 요건5 | B16: 안전보건 과제 및 목표의 이행현황을 평가하고 개선하는 경우(목표 설정, 계획대비 달성 여부 평가, 문제점에 대한 주기적 검토와 개선)

Sheet S-4-2
A1: [ S-4-2 ] 산업재해율
F2: ( 단위 : 명, % )
A3: 연도별 | B3: 산업재해율 | F3: 담당부서 | G3: 비고
B4: 재해자 수 (A) | C4: 연평균 근로자 수 (B) | D4: 산업재해율 (C=A/B ) | E4: 산업평균
A5: 2022년 | B5: 24 | C5: 774 | D5: =B5/C5 -> 0.03100775194 | F5: 안전관리부
A6: 2021년 | B6: 20 | C6: 719 | D6: =B6/C6 -> 0.02781641168 | F6: 안전운영부
A7: 2020년 | B7: 23 | C7: 644 | D7: =B7/C7 -> 0.03571428571 | F7: 안전운영부
A8: 2019년 | B8: 42 | C8: 574 | D8: =B8/C8 -> 0.07317073171 | F8: 안전운영부
A9: 2018년
A10: 2017년
A11: ※ 연평균근로자 수 : 임원, 일반직, 연구직

Sheet S-5-1
A1: [ S-5-1 ] 인권정책 수립
A3: 연도별 | B3: 조직의 인권정책 내 어떠한 이슈가 다루어지고 있는지 측정 | G3: 담당부서 | H3: 비고
B4: 1단계 | C4: 2단계 | D4: 3단계 | E4: 4단계 | F4: 5단계
B5: 1~2개에 대한 조직의 정책적 접근 방향이 설명되어 있는 경우 | C5: 3~4개 | D5: 5~6개 | E5: 7~8개 | F5: 9개 이상
A6: 2022년 | F6: O | G6: 인사관리부
A7: 2021년 | F7: O | G7: 인사관리부
A8: 2020년 | B8: 해당사항 없음
A9: 2019년 | B9: 해당사항 없음
A10: 2018년 | B10: 해당사항 없음
A11: 2017년 | B11: 해당사항 없음
A14: 조직의 인권정책 내 아래의 이슈 중 어떠한 이슈가 다루어지고 있는지 측정
A15: 1) 차별금지, 2) 근로조건 준수, 3) 인도적 대우, 4) 강제근로 금지, 5) 아동노동 착취 금지, 6) 결사 및 단체교섭의 자유, 7) 산업안전 보장, 8) 지역주민 인권 보호, 9) 고객의 인권 보호, 10) 기타

Sheet S-5-2
A1: [ S-5-2 ] 인권 리스크 평가
A3: 연도별 | B3: 조직의 인권정책 내 어떠한 이슈가 다루어지고 있는지 측정 | G3: 담당부서 | H3: 비고
B4: 1단계 | C4: 2단계 | D4: 3단계 | E4: 4단계 | F4: 5단계
B5: 체계가 구축되지 않은 경우 | C5: 체계가 구축되어 있는 경우. 단, 해당 인권 리스크 평가체계를 운용하지 않는 경우 | D5: 온라인/서면 등 비대면 방식으로 인권 리스크 진단 행위만 실시한 경우 | E5: 온라인/서면 등 비대면 방식의 진단과 함께, 고위험 인권 리스크에 대해서는 현장실사까지 실시한 경우 | F5: 비대면 진단 및 현장실사 행위를 실시한 경우, 또한 확인된 인권 리스크에 대한 개선계획/개선활동을 추진한 경우
A6: 2022년 | F6: O | G6: 인사관리부
A7: 2021년 | F7: O | G7: 인사관리부
A8: 2020년 | B8: 해당사항 없음
A9: 2019년 | B9: 해당사항 없음
A10: 2018년 | B10: 해당사항 없음
A11: 2017년 | B11: 해당사항 없음

Sheet S-7-1
A1: [ S-7-1 ] 전략적 사회공헌
A3: 연도별 | B3: 전략적 사회공헌 | G3: 담당부서 | H3: 비고
B4: 요건1 | C4: 요건2 | D4: 요건3 | E4: 요건4 | F4: 요건5
A5: 2022년 | B5: O | C5: O | D5: O | E5: O | F5: O | G5: 대외협력부
A6: 2021년 | B6: O | C6: O | D6: O | E6: O | F6: O | G6: 대외협력부
A7: 2020년
A8: 2019년
A9: 2018년
A10: 2017년
A12: 요건1 | B12: 조직의 사회공헌을 대표할 수 있으며, 대사회적 메시지로써 활용되는 사회공헌 미션, 비전, 또는 슬로건이 있는 경우
A13: 요건2 | B13: 조직의 사회공헌 미션, 비전, 또는 슬로건을 달성하기 위한 사회공헌 추진 분야/영역을 제시하고 있는 경우
A14: 요건3 | B14: 조직의 사회공헌 추진 분야/영역별 대표 프로그램을 제시하고 있는 경우
A15: 요건4 | B15: 조직의 사회공헌 대표 프로그램별 중장기 실행계획을 마련하고 있는 경우
A16: 요건5 | B16: 조직의 대표 사회공헌 프로그램이 사업적 또는 사회적으로 기여하는 성과를 측정할 수 있는 성과관리 지표(KPIs)가 있는 경우

Sheet S-7-2
A1: [ S-7-2 ] 구성원 봉사 참여
A3: 연도별 | B3: 구성원 봉사 참여 | G3: 담당부서 | H3: 비고
B4: (1단계) 봉사활동 참여 인센티브 제도가 없는 경우 | C4: (2단계) 향후 봉사활동 참여 인센티브 제도 도입 계획이 수립된 경우 | D4: (3단계) 봉사활동 참여 인센티브 제도 중 1개 도입 | E4: (4단계) 봉사활동 참여 인센티브 제도 중 2개 도입 | F4: (5단계) 봉사활동 참여 인센티브 제도 중 3개 이상 도입
A5: 2022년 | F5: O | G5: 대외협력부
A6: 2021년 | F6: O | G6: 대외협력부
A7: 2020년
A8: 2019년
A9: 2018년
A10: 2017년
A12: * 봉사활동 참여 인센티브 제도
A13: 1) 구성원 KPIs 내 봉사활동 반영, 2) 봉사활동 참여 유급휴가, 3) 봉사활동 참여 비용 지원, 4) 우수 봉사활동 참여자 금전적 포상,
A14: 5) 우수 봉사활동 참여자 표창, 6) 자율봉사자 대상 네트워킹 모임 지원, 7) 자원봉사처 연계, 8) 기타

Sheet S-8-1
A1: [ S-8-1 ] 정보보호시스템 구축
A3: 연도별 | B3: 정보보호시스템 구축 | G3: 담당부서 | H3: 비고
B4: 임원(또는 이에 준하는 관리자급)을 정보보호 최고책임자로 선임 | C4: 정보보호시스템의 안정성에 대해 제3자의 인증 획득 | D4: 모의해킹 등 외부공격에 대한 취약성 분석 실시 | E4: 정보보호 공시 사항 이행 | F4: 정보보호 시스템의 손상 또는 외부공격 등 정보보안 관련 사고에 대비하기 위한 보험에 가입
A5: 2022년 | B5: O | C5: O | D5: O | E5: X | F5: X | G5: 경영정보관리부
A6: 2021년 | B6: O | C6: O | D6: O | E6: X | F6: X | G6: 경영정보부
A7: 2020년
A8: 2019년
A9: 2018년
A10: 2017년

Sheet S-8-2
A1: [ S-8-2 ] 개인정보 침해 및 구제
E2: ( 단위 : 건 )
A3: 연도별 | B3: 개인정보 침해 및 구제 | E3: 담당부서 | F3: 비고
B4: 유형1 | C4: 유형2 | D4: 유형3
B5: (건수) | C5: (건수) | D5: (건수)
A6: 2022년 | B6: 0 | C6: 0 | D6: 0 | E6: 경영정보관리부
A7: 2021년 | B7: 0 | C7: 0 | D7: 0 | E7: 경영정보부
A8: 2020년 | B8: 0 | C8: 0 | D8: 0 | E8: 경영정보부
A9: 2019년 | B9: 0 | C9: 0 | D9: 0 | E9: 경영정보부
A10: 2018년 | B10: 0 | C10: 0 | D10: 0 | E10: 경영정보부
A11: 2017년 | B11: 0 | C11: 0 | D11: 0 | E11: 경영정보부
A13: 유형1 | B13: 개인정보 보호 관련 법/규제 위반내역 중 처분이 확정된 건수에 대해, 처벌수위가 사법상 형벌, 벌금, 과료인 경우, 또는 국가나 지방자치단체를 당사자로 하는 계약에서 입찰참가자격을 제한당한 경우
A14: 유형2 | B14: 개인정보 보호 관련 법/규제 위반내역 중 처분이 확정된 건수에 대해, 처벌수위가 행정상 처분 중 금전적 처분에 해당하는 과태료, 과징금, 이행강제금 등인 경우
A15: 유형3 | B15: 개인정보 보호 관련 법/규제 위반내역 중 처분이 확정된 건수에 대해, 처벌수위가 행정상 처분 중 비금전적 처분에 해당하는 시정명령, 시정권고, 경고 등인 경우

Sheet S-9-1
A1: [ S-9-1 ] 사회 법/규제 위반
E2: ( 단위 : 건 )
A3: 연도별 | B3: 사회 관련 법/규제 위반 내역 | E3: 담당부서 | F3: 비고
B4: 유형1 | C4: 유형2 | D4: 유형3
B5: (건수) | C5: (건수) | D5: (건수)
A6: 2022년 | B6: 0 | C6: 0 | D6: 0 | E6: 혁신기획부
A7: 2021년 | B7: 0 | C7: 0 | D7: 0 | E7: 기획부
A8: 2020년 | B8: 0 | C8: 0 | D8: 0 | E8: 기획부
A9: 2019년 | B9: 0 | C9: 0 | D9: 0 | E9: 기획부
A10: 2018년 | B10: 0 | C10: 0 | D10: 0 | E10: 기획부
A11: 2017년 | B11: 0 | C11: 0 | D11: 0 | E11: 기획부
A13: 유형1 | B13: 사회 관련 법/규제 위반내역중 처분이 확정된 건수에 대해 처벌수위가 사법상 형벌, 벌금, 과료인 경우, 또는 국가나 지자체를 당사자로 하는 계약에서 입찰참가자격을 제한당한 경우
A14: 유형2 | B14: 사회 관련 법/규제 위반내역중 처분이 확정된 건수에 대해 처벌수위가 행정상 처분 중 금전적 처분에 해당하는 과태료, 과징금, 이행강제금 등인 경우
A15: 유형3 | B15: 사회 관련 법/규제 위반내역중 처분이 확정된 건수에 대해 처벌수위가 행정상 처분 중 비금전적 처분에 해당하는 시정명령, 시정권고, 경고 등인 경우

Sheet S-소비차-추가1
A1: [ S-소비자-추가1 ] 소비자 정보 제공
A3: 연도별 | B3: 소비자 정보 제공 | D3: 담당부서 | E3: 비고
B4: 소비자 정보 제공 여부 | C4: 소비자 정보 세부사항
A5: 2022년 | B5: O | C5: O | D5: 고객만족추진단(TFT)
A6: 2021년 | B6: O | C6: O | D6: 총무부
A7: 2020년
A8: 2019년
A9: 2018년
A10: 2017년
B13: ㅇ소비자정보 세부사항: 사항별 10점씩 배분
B14: 1) 다양한 소비자정보 제공 채널 운영
B15: 2) 상품정보, 구매정보, 결제 및 배송 정보,
B16: 상담/문의 정보 등 충실한 소비자정보 제공
B17: 3) 검색 등 소비자정보에 대한 접근성
B18: 4) VOC 등 소비자 의견 개진 방법 보장
B19: 5) VOC 등 소비자 의견 제기의 처리 절차 명시
B20: 6) 소비자정보 제공 전 법규 준수 여부 확인 절차의 유무
B21: 7) 소비자정보 제공 전 법규 준수 여부 확인 절차의 체계성
B22: 8) 소비자정보 제공 전 법규 준수 여부 확인 절차의 이행 실적

Sheet S-소비자-추가3
A1: [ S-소비자-추가3 ] 고객만족 대응체계 운영
A3: 연도별 | B3: 고객만족 대응체계 운영 | F3: 담당부서 | G3: 비고
B4: 소비자불만 처리 관련 규정 | C4: 소비자불만 처리 담당 조직 | D4: 소비자불만 처리내용의 관리 | E4: 소비자불만 관련 지표 관리
A5: 2022년 | B5: O | C5: O | D5: O | E5: O | F5: 고객만족추진단(TFT)
A6: 2021년 | B6: O | C6: O | D6: O | E6: O | F6: 총무부
A7: 2020년
A8: 2019년
A9: 2018년
A10: 2017년
B12: ㅇ소비자불만 처리내용의 관리
B13: -1단계(관리 안함): 0점
B14: -2단계(관리, DB화 안됨-통계자료비활용): 10점
B15: -3단계(DB관리, 기초적 통계자료로만 활용): 20점
B16: -4단계(DB관리, 제품개선 등 활용): 30점
B17: ㅇ소비자불만 관련 지표 관리
B18: -1단계(수립 안됨): 0점
B19: -2단계(수립, 체계적 관리 안됨): 15점
B20: -3단계(수립, 체계적 관리 됨): 30점

Sheet S-노동-추가1
A1: [ S-노동-추가1 ] 정규직 중 고졸자 비율
E2: ( 단위 : 명, % )
A3: 연도별 | B3: 정규직 중 고졸자 비율 | E3: 담당부서 | F3: 비고
B4: 고졸자 수 (A) | C4: 총 정규직 수 (B) | D4: 고졸자 비율 (C=A/B )
A5: 2022년 | B5: 0 | C5: 750 | D5: =B5/C5 -> 0 | E5: 인사관리부
A6: 2021년 | B6: 0 | C6: 692 | D6: =B6/C6 -> 0 | E6: 인재채용부
A7: 2020년
A8: 2019년
A9: 2018년
A10: 2017년

Sheet S-노동-추가2
A1: [ S-노동-추가2 ] 여가친화 경영
A3: 연도별 | B3: 여가친화 인증 획득 | C3: 담당부서 | D3: 비고
A5: 2022년 | B5: O | C5: 인사관리부
A6: 2021년 | B6: O | C6: 인사관리부
A7: 2020년
A8: 2019년
A9: 2018년
A10: 2017년

Sheet S-정보보호-추가1
A1: [ S-정보보호-추가1 ] 개인정보보호를 위한 자율적 노력 및 활동
A3: 연도별 | B3: 개인정보 보호를 위한 노력 및 활동 | G3: 담당부서 | H3: 비고
B4: 개인정보 처리방침을 기호(라벨링) 등을 통해 이해하기 쉽게 작성하여 공개하고 있는지 여부 | C4: ISMS-P 인증획득 여부 | D4: 영향평가 수행 여부 | E4: 개인정보 자율 규제단체 활동 여부 | F4: 투명성보고서 발간 여부
A5: 2022년 | B5: O | C5: O | D5: O | E5: X | F5: X | G5: 경영정보관리부
A6: 2021년 | B6: O | C6: O | D6: O | E6: X | F6: X | G6: 경영정보부
A7: 2020년
A8: 2019년
A9: 2018년
A10: 2017년
